Cogmind - Beta 17 @@@ ROGUE MODE // 2026.07.13 @ 19:10:24 Player: kite Result: Destroyed by C-17 Slicer with Blade Saw Performance ------------- Evolutions (3) 1500 Regions Visited (16) 3200 Robots Destroyed (227) 1135 Value Destroyed (10989) 10989 Prototype IDs (27) 540 Alien Tech Used (0) 0 Bonus (4734) 4734 TOTAL SCORE: 22098 Bonus ------- High Alert Combat Kills 2710 Follower Combat Kills 1284 Entered Garrisons 800 Entered DSFs 500 Aligned with FarCom 300 Friendly Fire -860 Cogmind --------- Core Integrity 0/700 Matter 232/300 Energy 59/100 System Corruption 24% Temperature Cool (9) Movement Flying (30) Location -7/DSF Parts ------- > --- POWER (1) -------- (None) > --- PROPULSION (5) --- Cesium-ion Thruster Cesium-ion Thruster Nuclear Pulse Thruster > --- UTILITY (4) ------ Core Analyzer Transmission Jammer Chronowheel > --- WEAPON (3) ------- Scythe Spear > --- INVENTORY (5) ---- Advanced Remote Datajack Heavy Mace Heavy Mace Heavy Mace Scythe Peak State ------------ > --- POWER ------------ Light Antimatter Reactor > --- PROPULSION ------- Improved Carbon-fiber Leg Improved Carbon-fiber Leg Improved Carbon-fiber Leg Improved Carbon-fiber Leg Biometal Leg > --- UTILITY ---------- High-capacity Storage Unit Improved Targeting Computer Weapon Mount Layered Light Armor Plating > --- WEAPON ----------- Coil Gun Coil Gun KE Penetrator > --- INVENTORY -------- Light Antimatter Reactor Titanium Leg Titanium Leg Titanium Leg Titanium Leg Improved Carbon-fiber Leg Biometal Leg Biometal Leg High-capacity Matter Pod Improved Terrain Scanner Transmission Jammer Hardened Light Armor Plating Insulated Plating Chronowheel Heavy Machine Gun Magnetic Acceleration Cannon Missile Launcher Advanced Remote Datajack Katana Spear [Rating: 68] Favorites ----------- Power Light Deuterium Engine Engine Light Deuterium Engine Power Core Light Nuclear Core Reactor Light Antimatter Reactor Propulsion Armored Treads Treads Armored Treads Leg Improved Carbon-fiber Leg Wheel Wheel Flight Unit Cesium-ion Thruster Utility Huge Storage Unit Device Weapon Mount Storage Huge Storage Unit Processor Targeting Computer Hackware Hacking Suite Protection Hardened Light Armor Plating Weapon Gauss Cannon Energy Gun Small Laser Energy Cannon Neutron Cannon Ballistic Gun Light Assault Rifle Ballistic Cannon Gauss Cannon Launcher Missile Launcher Special Weapon Advanced Remote Datajack Impact Weapon Heavy Mace Slashing Weapon Katana Piercing Weapon Spear Build | -11 -10 -10 -10 -9 -8 -8 -8 -8 -7 -7 -7 -7 -7 -7 -7 -7 ------- Run | Yrd Mat Min Exi Min Mat Gar Mat Gar Fac Was Fac Gar Fac Gar Fac DSF Slots Evolved 6 | . . . . . 4 . . . 2 . . . . . . . Power . | . . . . . . . . . . . . . . . . . Propulsion 3 | . . . . . 2 . . . 1 . . . . . . . Utility 2 | . . . . . 1 . . . 1 . . . . . . . Weapon 1 | . . . . . 1 . . . . . . . . . . . Parts Attached 159 | 8 7 8 2 1 24 5 4 8 3 1 11 17 6 37 5 12 Power 10 | 1 . 1 . . 2 1 . . . . . 3 . 1 1 . Engine 5 | 1 . 1 . . 1 1 . . . . . 1 . . . . Core 2 | . . . . . 1 . . . . . . . . 1 . . Reactor 3 | . . . . . . . . . . . . 2 . . 1 . Propulsion 52 | 2 2 3 1 . 9 . . 1 1 . 6 3 1 15 1 7 Treads 17 | 2 . . 1 . 9 . . 1 1 . . . . 3 . . Leg 24 | . . . . . . . . . . . 6 3 1 12 1 1 Wheel 5 | . 2 3 . . . . . . . . . . . . . . Hover . | . . . . . . . . . . . . . . . . . Flight 6 | . . . . . . . . . . . . . . . . 6 Utility 45 | 2 2 1 . 1 5 1 4 2 1 . 5 6 4 9 . 2 Device 14 | 1 . 1 . 1 . . 1 2 . . . 2 1 4 . 1 Storage 5 | 1 1 . . . 2 . . . 1 . . . . . . . Processor 8 | . 1 . . . 1 . 1 . . . . 1 . 3 . 1 Hackware 5 | . . . . . . . . . . . 4 . 1 . . . Protection 13 | . . . . . 2 1 2 . . . 1 3 2 2 . . Artifact . | . . . . . . . . . . . . . . . . . Weapon 52 | 3 3 3 1 . 8 3 . 5 1 1 . 5 1 12 3 3 Energy Gun 6 | 2 . . . . . . . . . . . . . 4 . . Energy Cannon 1 | . . . . . . . . . . 1 . . . . . . Ballistic Gun 25 | 1 1 2 . . 2 1 . 2 . . . 4 1 8 3 . Ballistic Cannon 9 | . 2 . 1 . 2 . . 3 1 . . . . . . . Launcher 6 | . . 1 . . 4 1 . . . . . . . . . . Special Weapon 1 | . . . . . . . . . . . . . . . . 1 Impact Weapon 1 | . . . . . . . . . . . . . . . . 1 Slashing Weapon 2 | . . . . . . 1 . . . . . . . . . 1 Piercing Weapon 1 | . . . . . . . . . . . . 1 . . . . Special Melee Weapon . | . . . . . . . . . . . . . . . . . Unidentified Prototypes 4 | . . . . . 2 . . . . 1 . 1 . . . . Corrupted Parts 1 | . . . . . . . . . . . . . . 1 . . System Corruption 2 | . . . . . . . . . . . . . . 2 . . Parts Lost 53 | . 1 6 . . . 1 . 2 4 . . 5 . 31 . 3 Power 5 | . . 1 . . . . . . . . . 1 . 2 . 1 Propulsion 19 | . . 3 . . . . . . 1 . . 1 . 12 . 2 Utility 8 | . 1 . . . . . . . . . . 2 . 5 . . Weapon 21 | . . 2 . . . 1 . 2 3 . . 1 . 12 . . Highest Loss Streak 9 | . 1 6 . . . 1 . 1 2 . . 2 . 9 . 3 To Critical Strikes 1 | . . . . . . . . . . . . 1 . . . . Average Backups 21 | 3 17 22 19 20 24 24 23 24 23 20 19 19 20 17 19 9 Power . | . 1 . . . . . 1 1 1 1 1 1 1 . 1 . Propulsion 7 | 1 5 5 4 4 9 10 10 9 8 8 8 6 6 4 4 2 Utility 6 | . 5 6 6 7 6 8 6 6 5 5 5 4 5 6 6 1 Weapon 5 | . 5 9 8 8 6 4 5 5 6 4 3 4 5 3 5 3 Tool/Special . | . . . . . . . . . . . . . . . . . Unused Backups 57 | . 4 . . . 13 1 . 7 1 . 1 7 2 3 7 11 Power 5 | . 1 . . . . 1 . 1 . . . 2 . . . . Propulsion 17 | . 2 . . . 7 . . 2 . . 1 2 . . 2 1 Utility 16 | . 1 . . . 2 . . 2 1 . . 2 1 2 2 3 Weapon 17 | . . . . . 4 . . 1 . . . 1 1 . 3 7 Tool/Special 2 | . . . . . . . . 1 . . . . . 1 . . Average Slot Usage (%) 98 | . 99 91 87 100 99 99 100 99 99 99 98 99 99 92 99 79 Engine 7 | . 14 13 14 14 7 9 9 9 7 7 7 1 7 3 . . Treads 23 | . 6 . 3 28 35 36 36 36 37 38 8 . . 3 . . Leg 8 | . . . . . . . . . . . 28 38 38 31 38 11 Wheel 2 | . 21 28 24 . . . . . . . . . . . . . Device 4 | . 6 4 14 14 . . 4 4 13 15 7 3 4 4 3 8 Storage 9 | . 14 14 14 14 9 9 9 9 7 7 7 7 7 7 7 3 Processor 5 | . 2 9 . . 8 9 4 . . . . 6 7 7 11 8 Protection 8 | . 5 . . . 8 9 9 13 7 7 6 10 9 7 7 2 Ballistic Gun 9 | . 21 17 12 . 8 6 . 7 4 . . 17 22 14 21 9 Ballistic Cannon 11 | . 1 3 3 28 18 17 18 18 16 14 10 . . . . . Slashing Weapon 1 | . . . . . . 2 9 1 . 2 7 2 . . . 2 Peak Build Rating 68 | 7 9 9 10 12 37 39 40 46 53 53 58 68 58 63 67 68 Average Rating 38 | 5 8 8 8 11 30 37 39 42 51 50 52 61 56 47 61 44 On Entrance 35 | . 7 9 8 10 12 37 39 39 46 51 50 58 61 55 59 67 Avg Prop Armor Cover (%) 6 | . . . . . . . . . . . 2 . . 7 . . Naked Turns . | . . . . . . . . . . . . . . . . . Heaviest Build 116 | 12 89 89 90 90 108 107 107 113 116 76 71 79 79 79 68 68 Greatest Support 112 | 40 40 20 40 40 86 80 80 82 112 112 112 100 86 112 105 106 Greatest Overweight (x) 8 | 2 8 4 4 2 1 1 1 1 1 . 1 1 . 2 . 3 Average Overweight (x) . | . 3 4 3 2 . 1 1 1 . . . . . . . . Largest Inventory Capacity 25 | 8 25 25 25 25 25 25 25 25 25 20 20 20 20 20 20 20 Average Capacity 22 | 7 21 25 25 25 24 25 25 25 23 20 20 20 20 20 20 10 Most Carried 25 | 7 25 25 21 20 25 25 25 25 25 20 20 20 20 20 20 20 Average Carried 21 | 3 17 21 19 20 24 24 23 24 23 19 19 19 19 17 19 8 Final Capacity 25 | 8 25 25 25 25 25 25 25 25 20 20 20 20 20 20 20 5 Final Carried 25 | 6 25 19 20 20 25 25 24 25 20 20 20 20 20 20 20 5 Class Distribution -------------------- 48% | Skirmisher 21% | Mutant 6% | Tank 5% | Scavenger-Mutant 5% | Scavenger-Tank 3% | Assassin 3% | Scavenger-Gunner 3% | Scavenger-Skirmisher Dominant Class ---------------- Mutant | -10/Materials Mutant | -10/Mines Mutant | -10/Exiles Skirmisher | -9/Mines Skirmisher | -8/Materials Skirmisher | -8/Garrison Mutant | -8/Materials Skirmisher | -8/Garrison Skirmisher | -7/Factory Skirmisher | -7/Waste Hacker-Mutant | -7/Factory Scavenger-Tank | -7/Garrison Scavenger-Skirmisher | -7/Factory Scavenger-Mutant | -7/Garrison Scavenger-Gunner | -7/Factory Sprinter | -7/DSF Resources | -11 -10 -10 -10 -9 -8 -8 -8 -8 -7 -7 -7 -7 -7 -7 -7 -7 ----------- Run | Yrd Mat Min Exi Min Mat Gar Mat Gar Fac Was Fac Gar Fac Gar Fac DSF Matter Collected 9253 | 349 663 81 . 76 1383 814 176 1016 938 239 485 1315 42 1362 207 107 Remotely . | . . . . . . . . . . . . . . . . . Salvage Created 7851 | 198 596 81 . 53 1258 474 . 561 1323 547 378 1227 . 1069 30 56 Parts 423 | 15 41 1 . 2 85 25 . 34 70 5 19 66 . 55 . 5 Haulers Intercepted 7 | . 1 . . . 5 . . . . . . . . . 1 . Recyclers Shooed 9 | 1 4 1 . . 3 . . . . . . . . . . . Parts Field Recycled . | . . . . . . . . . . . . . . . . . Retrieved Matter . | . . . . . . . . . . . . . . . . . Parts Self-Destructed . | . . . . . . . . . . . . . . . . . Prevented . | . . . . . . . . . . . . . . . . . Parts Restored . | . . . . . . . . . . . . . . . . . Kills | -11 -10 -10 -10 -9 -8 -8 -8 -8 -7 -7 -7 -7 -7 -7 -7 -7 ------- Run | Yrd Mat Min Exi Min Mat Gar Mat Gar Fac Was Fac Gar Fac Gar Fac DSF Combat Hostiles Destroyed 165 | . 9 6 . 2 23 17 . 20 29 3 5 27 . 23 . 1 Melee 9 | . . . . . . . . . . . . 5 . 4 . . Guns 54 | . 9 . . . 6 2 . 3 1 . . 14 . 18 . 1 Cannons 53 | . . 1 . 2 10 12 . 13 13 1 1 . . . . . AOE 48 | . . 5 . . 7 3 . 4 14 2 4 8 . 1 . . Classes Destroyed 19 | 3 5 1 . 1 4 1 . 2 1 1 . . . . . . Worker 16 | 1 7 . . . 5 . . . 3 . . . . . . . Builder 9 | . . . . . 4 . . . 5 . . . . . . . Tunneler 8 | 7 . . . . . . . . . . 1 . . . . . Hauler 7 | . 1 . . . 5 . . . . . . . . . 1 . Recycler 17 | 1 4 . . . 4 . . . 4 . 4 . . . . . Mechanic 1 | . 1 . . . . . . . . . . . . . . . Watcher 7 | . 1 . . . 5 . . 1 . . . . . . . . Swarmer 46 | . 8 2 . . 6 3 . 8 6 . 4 4 . 5 . . Grunt 51 | . 1 . . 1 8 4 . 3 10 . . 17 . 7 . . Brawler 4 | . . . . 1 . . . . 1 . . 1 . 1 . . Duelist 9 | . . . . . 1 . . 1 7 . . . . . . . Protector 1 | . . . . . . . . . 1 . . . . . . . Sentry 30 | . . . . . 7 8 . 4 2 . . 4 . 5 . . Demolisher 1 | . . . . . . 1 . . . . . . . . . . Specialist 2 | . . . . . . . . 1 . . . . . . . 1 Hunter 6 | . . . . . 1 1 . 2 . . . 1 . 1 . . Programmer 8 | . . . . . . . . 1 2 . 1 . . 4 . . Compactor 3 | . . . . . . . . . . 3 . . . . . . Assembled 4 | . . 4 . . . . . . . . . . . . . . Best Kill Streak 18 | 5 3 6 . 2 14 4 . 4 18 2 4 9 . 3 1 1 Combat Bots Only 12 | . 3 6 . 2 9 4 . 4 12 2 4 9 . 3 . 1 Max Kills in Single Turn 5 | 1 2 5 . 1 4 1 . 2 3 1 3 2 . 1 1 1 Gunslinging . | . . . . . . . . . . . . . . . . . Exploded 5 | . . 5 . . 3 1 . 2 2 1 3 2 . 1 . . Melee 1 | . . . . . . . . . . . . 1 . 1 . . Uniques/NPCs Destroyed 1 | . . . . . . . . 1 . . . . . . . . HV-R5K (-8/Garrison) Combat | -11 -10 -10 -10 -9 -8 -8 -8 -8 -7 -7 -7 -7 -7 -7 -7 -7 -------- Run | Yrd Mat Min Exi Min Mat Gar Mat Gar Fac Was Fac Gar Fac Gar Fac DSF Hostile Shots Fired 1210 | . 37 25 . 2 96 95 . 87 96 . 11 176 12 556 . 17 Missed 402 | . 9 6 . . 28 26 . 24 32 . 4 64 5 197 . 7 Hits 808 | . 28 19 . 2 68 69 . 63 64 . 7 112 7 359 . 10 Melee 10 | . . . . 2 1 . . . 3 . . 2 . . . 2 Projectile 798 | . 28 19 . . 67 69 . 63 61 . 7 110 7 359 . 8 AOE 21 | . . 13 . . . 5 . . . . . . . 1 . 2 Critical Strikes 22 | . . . . . 4 . . 2 1 . 2 3 . 9 . 1 Damage Taken 10342 | . 271 536 . 45 942 1123 . 657 1089 . 94 1582 106 3601 . 296 Core 1043 | . 39 178 . . 14 53 . 46 47 . 29 198 10 348 . 81 Absorbed by Shields 331 | . . . . . . . . 13 . . . . . 318 . . Ignored by Resistances 73 | . . . . . 40 . . . 21 . 12 . . . . . Core Remaining (%) 64 | 100 . . . 13 . . . 79 . . . . . . . . Volleys Fired 577 | 23 60 14 . 8 88 74 . 70 57 24 14 72 4 62 4 3 Largest 3 | 2 2 2 . 2 3 3 . 3 3 3 2 3 3 3 3 3 Hottest 210 | 60 60 60 . 60 100 100 . 108 124 124 84 93 91 210 76 84 Shots Fired 1264 | 45 120 25 . 16 241 171 . 143 118 42 17 145 13 146 13 9 Gun 668 | 45 100 20 . . 92 47 . 30 23 . . 136 13 140 13 9 Cannon 532 | . 20 4 . 16 140 118 . 108 77 34 15 . . . . . Launcher 64 | . . 1 . . 9 6 . 5 18 8 2 9 . 6 . . Special . | . . . . . . . . . . . . . . . . . Kinetic 1121 | 23 108 24 . 16 232 165 . 138 100 34 15 136 13 95 13 9 Thermal 75 | 22 12 . . . . . . . . . . . . 41 . . Explosive 52 | . . 1 . . 9 5 . 5 7 8 2 9 . 6 . . Electromagnetic 16 | . . . . . . 1 . . 11 . . . . 4 . . Robot Hit Streak 26 | 15 12 8 . 7 14 11 . 14 12 22 25 26 9 12 14 7 Robot Miss Streak 9 | 2 5 2 . 2 6 3 . 4 2 1 1 3 5 9 3 1 Penetration Max 1 | . . . . . . 1 . 1 1 . . 1 . 1 . . Secondary Targets 6 | . 2 . . . 2 . . . . . . 1 . 1 . . Max Gunslinging Chain 1 | . 1 . . . 1 . . . . . . 1 . 1 . . Shots Hit Robots 788 | 33 69 18 . 10 152 84 . 72 73 35 13 97 6 110 10 6 Core Hits 413 | 10 31 16 . 3 73 33 . 28 76 9 9 51 2 68 2 2 Critical Kills 4 | . . . . . . . . . . . . 3 . 1 . . Critical Parts Destroyed 9 | 2 . . . . 1 1 . . 1 . . 2 . 1 1 . Critical Strikes 42 | 2 1 . . 1 8 7 . 8 2 . . 8 . 4 1 . Burn 1 | . . . . . . . . . . . . . . 1 . . Destroy 14 | 2 . . . . 1 1 . . 1 . . 6 . 2 1 . Blast 24 | . 1 . . 1 7 6 . 8 1 . . . . . . . Impale 3 | . . . . . . . . . . . . 2 . 1 . . Melee Attacks 87 | . . . . . . 3 . . 1 6 21 24 . 30 2 . Impact . | . . . . . . . . . . . . . . . . . Slashing 38 | . . . . . . 3 . . 1 6 21 3 . 4 . . Piercing 49 | . . . . . . . . . . . . 21 . 26 2 . Sneak Attacks 7 | . . . . . . . . . . . 7 . . . . . Combat Hostiles . | . . . . . . . . . . . . . . . . . Follow-up Attacks 2 | . . . . . . . . . . . . 1 . 1 . . Damage Inflicted 22988 | 390 897 324 . 207 3378 2098 . 1722 4630 1881 913 3254 124 2872 182 116 Guns 6377 | 390 641 129 . . 663 199 . 333 277 . . 1758 124 1565 182 116 Cannons 7532 | . 256 36 . 207 1903 1583 . 1216 1378 789 164 . . . . . Explosions 7433 | . . 159 . . 812 316 . 173 2975 1092 288 1030 . 588 . . Melee 1646 | . . . . . . . . . . . 461 466 . 719 . . Ramming . | . . . . . . . . . . . . . . . . . Kinetic 13165 | 220 824 165 . 207 2566 1782 . 1549 1655 789 164 1758 124 1064 182 116 Thermal 1904 | 170 73 . . . . 9 . . 1182 . . . . 470 . . Explosive 5355 | . . 159 . . 812 307 . 173 906 1092 288 1030 . 588 . . Electromagnetic 918 | . . . . . . . . . 887 . . . . 31 . . Impact . | . . . . . . . . . . . . . . . . . Slashing 692 | . . . . . . . . . . . 461 96 . 135 . . Piercing 954 | . . . . . . . . . . . . 370 . 584 . . Highest Corruption 24 | . . . . . . 1 1 3 . . 2 9 9 24 24 24 Average Corruption 7 | . . . . . . 1 1 2 . . 1 5 9 17 24 24 Corruption Purged . | . . . . . . . . . . . . . . . . . Corruption Blocked . | . . . . . . . . . . . . . . . . . Effects 181 | . . . . . . 7 . 38 . . 5 35 7 70 15 4 Message Errors 49 | . . . . . . 2 . 11 . . 1 12 1 16 4 2 Matter Fused 41 | . . . . . . 2 . 9 . . 1 5 2 18 4 . Heat Flow Errors 19 | . . . . . . 2 . 5 . . . 4 1 5 1 1 Energy Discharges 24 | . . . . . . 1 . 3 . . . 5 . 11 4 . Parts Rejected 4 | . . . . . . . . . . . . 1 1 2 . . Data Loss (minor) 16 | . . . . . . . . 3 . . 1 4 1 5 1 1 Data Loss (major) 7 | . . . . . . . . 4 . . 1 1 . 1 . . Misfires 7 | . . . . . . . . 2 . . . . 1 3 1 . Alerts 1 | . . . . . . . . . . . 1 . . . . . Weapon Failures 13 | . . . . . . . . 1 . . . 3 . 9 . . Overload Shots . | . . . . . . . . . . . . . . . . . Overflow Damage 451 | . . . . . 76 13 . 20 153 . 137 17 . 35 . . Projectiles 158 | . . . . . 45 . . 20 68 . 25 . . . . . Explosions 170 | . . . . . 31 13 . . 85 . 25 16 . . . . Melee 123 | . . . . . . . . . . . 87 1 . 35 . . Knockbacks 48 | . . 1 . . 18 8 . 7 14 . . . . . . . Impact . | . . . . . . . . . . . . . . . . . Kinetic 45 | . . 1 . . 18 8 . 7 11 . . . . . . . Secondary 3 | . . . . . . . . . 3 . . . . . . . Self-Inflicted Damage 257 | . . . . . 33 56 . . 127 . . . . 41 . . Shots 9 | . . . . . 2 1 . . 5 . . . . 1 . . Rammed . | . . . . . . . . . . . . . . . . . Targets Rammed . | . . . . . . . . . . . . . . . . . Kicked . | . . . . . . . . . . . . . . . . . Crushed . | . . . . . . . . . . . . . . . . . Highest Temperature 452 | . 8 . . . 257 337 . 295 317 162 54 292 127 452 160 90 Average Temperature 74 | . 2 . . . 54 77 . 83 69 48 27 99 34 79 84 46 Received Heat Transfer 2256 | . 12 . . . 477 270 . 96 231 . . 525 . 627 . 18 Effects 6 | . . . . . 1 1 . 1 1 . . 1 . 1 . . Energy Bleed 3 | . . . . . 1 1 . 1 . . . . . . . . Interference 2 | . . . . . . . . . 1 . . 1 . . . . Short Circuit 1 | . . . . . . . . . . . . . . 1 . . Siege Activations . | . . . . . . . . . . . . . . . . . Martial Activations . | . . . . . . . . . . . . . . . . . Shielding Activations . | . . . . . . . . . . . . . . . . . Robots Disrupted . | . . . . . . . . . . . . . . . . . Combat Hostiles . | . . . . . . . . . . . . . . . . . Robots Corrupted 1 | . . . . . . . . . 1 . . . . . . . Combat Hostiles 1 | . . . . . . . . . 1 . . . . . . . Parts Fried 6 | . . . . . . . . . 6 . . . . . . . Impact Corruptions . | . . . . . . . . . . . . . . . . . Robots Melted . | . . . . . . . . . . . . . . . . . Combat Hostiles . | . . . . . . . . . . . . . . . . . Parts Melted . | . . . . . . . . . . . . . . . . . Heat Transferred 2631 | 375 175 . . . . 12 . . 925 . . . . 1144 . . Parts Sabotaged . | . . . . . . . . . . . . . . . . . Parts Stolen . | . . . . . . . . . . . . . . . . . Parts Stripped . | . . . . . . . . . . . . . . . . . Power Chain Reactions 5 | . . . . . . 1 . . 4 . . . . . . . Alert | -11 -10 -10 -10 -9 -8 -8 -8 -8 -7 -7 -7 -7 -7 -7 -7 -7 ------- Run | Yrd Mat Min Exi Min Mat Gar Mat Gar Fac Was Fac Gar Fac Gar Fac DSF Maximum Alert Level 5 | . . . . . 1 5 3 5 5 2 1 5 3 4 2 1 Low Security (%) 27 | 100 100 100 . 100 45 4 . . . . 64 23 . . . . Level 1 16 | . . . . . 54 15 . . . . 35 13 . . . 100 Level 2 7 | . . . . . . 10 . 2 . 100 . 1 . 2 100 . Level 3 19 | . . . . . . 23 100 11 35 . . 21 100 92 . . Level 4 16 | . . . . . . 24 . 35 62 . . 20 . 5 . . Level 5 12 | . . . . . . 21 . 50 2 . . 20 . . . . High Security . | . . . . . . . . . . . . . . . . . Max Security . | . . . . . . . . . . . . . . . . . Peak Influence 2255 | 10 64 48 . 40 300 2135 1040 2255 1688 588 309 1787 965 1163 610 366 Initial 1183 | . . . . . . 188 1040 650 1183 588 286 . 938 629 610 346 Average 742 | 1 15 12 . 5 200 1050 1021 1574 1226 499 165 876 916 971 550 362 Influence Increases 9211 | 45 293 48 . 50 883 1957 . 1665 1039 27 307 1857 91 864 65 20 Destroy 0b10 Robot/C 4000 | . 180 40 . 40 460 540 . 700 560 . 100 840 20 500 . 20 Destroy 0b10 Robot/NC 345 | 45 70 . . . 115 . . 5 65 . 25 5 5 5 5 . Destroy Leader 476 | . 24 . . 10 140 20 . 30 110 . 20 60 10 50 2 . Allied During Kill 334 | . . . . . . 46 . 132 . . . 140 10 6 . . Successful Hack 129 | . 18 . . . 13 23 . 14 . . 16 21 14 . 10 . Disable Machine 600 | . . . . . 45 75 . 90 180 . 90 60 30 30 . . Anti-Garrison Action 2300 | . . . . . . 1050 . 600 . . . 450 . 200 . . Destroy Structure 742 | . 1 8 . . 95 158 . 94 124 27 56 131 2 43 3 . Lose Combat Pursuer 285 | . . . . . 15 45 . . . . . 150 . 30 45 . Influence Decreases 8875 | 45 291 50 . 50 593 112 1135 410 1614 1298 716 70 979 600 733 179 Entered New Map 5657 | . . 2 . . . 102 1095 350 1072 1092 123 . 849 270 553 149 Time Decay 2327 | 45 289 30 . 50 593 . 40 . 502 206 302 . 90 . 180 . Lost Part 480 | . 2 18 . . . 10 . 20 40 . . 50 . 310 . 30 Lost Ally 120 | . . . . . . . . 40 . . . 20 40 20 . . Purge Threat 291 | . . . . . . . . . . . 291 . . . . . Squads Dispatched 14 | . . . . . 1 . . . 8 . 3 . 1 . . 1 Investigation 2 | . . . . . . . . . . . 1 . 1 . . . Extermination 3 | . . . . . . . . . 2 . 1 . . . . . Reinforcement 5 | . . . . . 1 . . . 2 . 1 . . . . 1 Assault 4 | . . . . . . . . . 4 . . . . . . . Garrison . | . . . . . . . . . . . . . . . . . Intercept . | . . . . . . . . . . . . . . . . . Searches Triggered . | . . . . . . . . . . . . . . . . . Construction Impeded 4 | . . . . . 1 . . . 2 . 1 . . . . . Haulers Reinforced . | . . . . . . . . . . . . . . . . . Active Scanning Responses . | . . . . . . . . . . . . . . . . . Cargo Convoy Interrupts . | . . . . . . . . . . . . . . . . . Stealth | -11 -10 -10 -10 -9 -8 -8 -8 -8 -7 -7 -7 -7 -7 -7 -7 -7 --------- Run | Yrd Mat Min Exi Min Mat Gar Mat Gar Fac Was Fac Gar Fac Gar Fac DSF Distress Signals 6 | . 1 . . . 1 . . 1 1 . . . 1 . 1 . Communications Jammed . | . . . . . . . . . . . . . . . . . Distress Signals . | . . . . . . . . . . . . . . . . . Times Spotted 275 | . 20 17 . 2 36 31 . 33 38 6 6 45 3 33 . 5 Peak Tracking Total 16 | . 4 16 . 2 6 5 . 5 6 3 4 6 2 7 4 4 Tactical Retreats 14 | . . . . . 1 3 . . . . . 6 . 2 2 . Traps | -11 -10 -10 -10 -9 -8 -8 -8 -8 -7 -7 -7 -7 -7 -7 -7 -7 ------- Run | Yrd Mat Min Exi Min Mat Gar Mat Gar Fac Was Fac Gar Fac Gar Fac DSF Traps Triggered 26 | . 2 . . . . 11 . 4 1 . . 5 . 2 . 1 Indirectly . | . . . . . . . . . . . . . . . . . Trap Hack Attempts . | . . . . . . . . . . . . . . . . . Triggered . | . . . . . . . . . . . . . . . . . Disarmed . | . . . . . . . . . . . . . . . . . Reprogrammed . | . . . . . . . . . . . . . . . . . Reused . | . . . . . . . . . . . . . . . . . Traps Extracted . | . . . . . . . . . . . . . . . . . Installed . | . . . . . . . . . . . . . . . . . Triggered . | . . . . . . . . . . . . . . . . . Machines | -11 -10 -10 -10 -9 -8 -8 -8 -8 -7 -7 -7 -7 -7 -7 -7 -7 ---------- Run | Yrd Mat Min Exi Min Mat Gar Mat Gar Fac Was Fac Gar Fac Gar Fac DSF Machines Disabled 65 | . . . . . 3 16 . 12 12 . 6 11 2 3 . . Max in Single Turn 5 | . . . . . 1 2 . 2 4 . 5 2 1 2 . . Garrison Relay 15 | . . . . . . 5 . 4 . . . 5 . 1 . . Phase Generator 3 | . . . . . . 1 . 1 . . . 1 . . . . Machines Repaired . | . . . . . . . . . . . . . . . . . Machines Dismantled . | . . . . . . . . . . . . . . . . . Machines Sabotaged . | . . . . . . . . . . . . . . . . . Overloaded Fab Kills . | . . . . . . . . . . . . . . . . . Hacking | -11 -10 -10 -10 -9 -8 -8 -8 -8 -7 -7 -7 -7 -7 -7 -7 -7 --------- Run | Yrd Mat Min Exi Min Mat Gar Mat Gar Fac Was Fac Gar Fac Gar Fac DSF Machines Accessed 36 | . 5 . 2 . 7 3 1 2 2 . 6 3 1 1 3 . Terminals 26 | . 4 . . . 4 3 . 2 1 . 5 3 . 1 3 . Fabricators . | . . . . . . . . . . . . . . . . . Repair Stations 1 | . 1 . . . . . . . . . . . . . . . Recycling Units 1 | . . . . . 1 . . . . . . . . . . . Scanalyzers 2 | . . . . . 1 . . . 1 . . . . . . . Garrison Access 4 | . . . . . 1 . 1 . . . 1 . 1 . . . Total Hacks 81 | . 16 . 5 . 12 6 3 4 6 . 13 4 3 2 7 . Successful 40 | . 7 . 5 . 8 2 1 1 4 . 7 2 1 . 2 . Failed 41 | . 9 . . . 4 4 2 3 2 . 6 2 2 2 5 . Catastrophic 9 | . 2 . . . . . . 3 . . . 2 . . 2 . Database Lockouts . | . . . . . . . . . . . . . . . . . Manual 34 | . 14 . 1 . 6 . . . 1 . 7 . . . 5 . Terminals 58 | . 15 . . . 6 6 . 4 2 . 12 4 . 2 7 . Fabricators . | . . . . . . . . . . . . . . . . . Repair Stations 1 | . 1 . . . . . . . . . . . . . . . Recycling Units 3 | . . . . . 3 . . . . . . . . . . . Scanalyzers 6 | . . . . . 2 . . . 4 . . . . . . . Garrison Access 8 | . . . . . 1 . 3 . . . 1 . 3 . . . Terminal Hacks 22 | . 4 . 5 . 2 2 . 1 . . 5 2 . . 1 . Record 4 | . . . 4 . . . . . . . . . . . . . Part Schematic 2 | . 2 . . . . . . . . . . . . . . . Open Door 2 | . . . . . . 1 . . . . . 1 . . . . Open DSF 1 | . . . . . . . . . . . . . . . 1 . Emergency Access Points 1 | . . . . . . . . . . . . 1 . . . . Machine Index 1 | . . . . . 1 . . . . . . . . . . . Garrison Index 1 | . . . . . . . . . . . 1 . . . . . Unreport Threat 3 | . . . . . . . . . . . 3 . . . . . Locate Traps 2 | . 1 . . . . . . . . . 1 . . . . . Hauler Manifests 1 | . 1 . . . . . . . . . . . . . . . Zone Layout 1 | . . . . . 1 . . . . . . . . . . . Patrol Navigation 1 | . . . . . . . . 1 . . . . . . . . Security Stations 1 | . . . . . . 1 . . . . . . . . . . Proto ID Catalog 1 | . . . 1 . . . . . . . . . . . . . Fabricator Hacks . | . . . . . . . . . . . . . . . . . Repair Station Hacks 1 | . 1 . . . . . . . . . . . . . . . Refit 1 | . 1 . . . . . . . . . . . . . . . Recycling Unit Hacks 2 | . . . . . 2 . . . . . . . . . . . Process 1 | . . . . . 1 . . . . . . . . . . . Retrieve Matter 1 | . . . . . 1 . . . . . . . . . . . Scanalyzer 5 | . . . . . 2 . . . 3 . . . . . . . Insert Component 1 | . . . . . . . . . 1 . . . . . . . Analyze 1 | . . . . . . . . . 1 . . . . . . . Retrieve Study 3 | . . . . . 2 . . . 1 . . . . . . . Garrison Access Hacks 4 | . . . . . 1 . 1 . . . 1 . 1 . . . Unlock Access 4 | . . . . . 1 . 1 . . . 1 . 1 . . . Unauthorized Hacks 6 | . 2 . . . 1 . . . 1 . 1 . . . 1 . Terminals 6 | . 2 . . . 1 . . . 1 . 1 . . . 1 . Botnet 6 | . 2 . . . 1 . . . 1 . 1 . . . 1 . Fabricators . | . . . . . . . . . . . . . . . . . Repair Stations . | . . . . . . . . . . . . . . . . . Recycling Units . | . . . . . . . . . . . . . . . . . Scanalyzers . | . . . . . . . . . . . . . . . . . Garrison Access . | . . . . . . . . . . . . . . . . . Data Cores Recovered . | . . . . . . . . . . . . . . . . . Used . | . . . . . . . . . . . . . . . . . Hacking Detections 29 | . 4 . . . 6 3 1 2 1 . 5 2 1 1 3 . Full Trace Events 7 | . . . . . . 2 . 1 . . 1 1 1 1 . . Feedback Events 1 | . . . . . . 1 . . . . . . . . . . Corruption 1 | . . . . . . 1 . . . . . . . . . . Feedback Blocked . | . . . . . . . . . . . . . . . . . Robot Schematics Acquired . | . . . . . . . . . . . . . . . . . Robots Built . | . . . . . . . . . . . . . . . . . Authchips . | . . . . . . . . . . . . . . . . . Time . | . . . . . . . . . . . . . . . . . Total Robot Build Rating . | . . . . . . . . . . . . . . . . . Part Schematics Acquired 3 | . 2 . . . . . . . 1 . . . . . . . Parts Built . | . . . . . . . . . . . . . . . . . Authchips . | . . . . . . . . . . . . . . . . . Time . | . . . . . . . . . . . . . . . . . Total Part Build Rating . | . . . . . . . . . . . . . . . . . Part Studies Acquired 3 | . . . . . 2 . . . 1 . . . . . . . Parts Repaired . | . . . . . . . . . . . . . . . . . Time . | . . . . . . . . . . . . . . . . . Parts Recycled . | . . . . . . . . . . . . . . . . . Recycled Matter 270 | . . . . . 270 . . . . . . . . . . . Retrieved Matter 270 | . . . . . 270 . . . . . . . . . . . Retrieved Components . | . . . . . . . . . . . . . . . . . Parts Scanalyzed 1 | . . . . . . . . . 1 . . . . . . . Part Schematics Acquired 1 | . . . . . . . . . 1 . . . . . . . Parts Damaged . | . . . . . . . . . . . . . . . . . Bothacking | -11 -10 -10 -10 -9 -8 -8 -8 -8 -7 -7 -7 -7 -7 -7 -7 -7 ------------ Run | Yrd Mat Min Exi Min Mat Gar Mat Gar Fac Was Fac Gar Fac Gar Fac DSF Used RIF Installer . | . . . . . . . . . . . . . . . . . Robots Hacked . | . . . . . . . . . . . . . . . . . Non-combat . | . . . . . . . . . . . . . . . . . Combat . | . . . . . . . . . . . . . . . . . Robot Hacks Applied . | . . . . . . . . . . . . . . . . . Relay Couplers Released 62 | . . . . . . 21 . 17 . . . 20 . 4 . . Machine Destruction 62 | . . . . . . 21 . 17 . . . 20 . 4 . . Fabnet Peak Effective % . | . . . . . . . . . . . . . . . . . Robots Rewired . | . . . . . . . . . . . . . . . . . Allies Hacked . | . . . . . . . . . . . . . . . . . Hacks Repelled . | . . . . . . . . . . . . . . . . . Allies | -11 -10 -10 -10 -9 -8 -8 -8 -8 -7 -7 -7 -7 -7 -7 -7 -7 -------- Run | Yrd Mat Min Exi Min Mat Gar Mat Gar Fac Was Fac Gar Fac Gar Fac DSF Total Allies 9 | . . 2 . . . 3 . . . . . 4 . . . . Largest Group 3 | . . 2 2 . . 3 3 3 . . . 3 3 1 . . Highest-Rated Group 213 | . . 52 52 . . 213 213 213 . . . 142 120 80 . . Highest-Rated Ally 149 | . . 31 31 . . 149 149 149 . . . 80 80 80 . . Initial Warlord ECA Mod 36 | . . . . . . . 13 13 21 21 21 21 33 33 36 36 Total Orders . | . . . . . . . . . . . . . . . . . Ally Attacks 110 | . . . . . . 17 . 46 . . . 36 6 5 . . Total Damage 3575 | . . . . . . 863 . 1228 . . . 1245 87 152 . . Kills 44 | . . . . . . 10 . 15 . . . 15 2 2 . . Allies Corrupted . | . . . . . . . . . . . . . . . . . Allies Melted . | . . . . . . . . . . . . . . . . . Intel | -11 -10 -10 -10 -9 -8 -8 -8 -8 -7 -7 -7 -7 -7 -7 -7 -7 ------- Run | Yrd Mat Min Exi Min Mat Gar Mat Gar Fac Was Fac Gar Fac Gar Fac DSF Active Infowar (turns) 3878 | 21 574 54 487 317 83 . 41 . 1123 437 342 40 103 . 167 89 Terrain 2358 | . . . . 309 83 . 41 . 1123 437 342 23 . . . . Seismic 1177 | 21 574 54 487 8 33 . . . . . . . . . . . Spoofing 15 | . . . . . . . . . . . . 15 . . . . Jamming 361 | . . . . . . . . . . . . 2 103 . 167 89 Robot Analysis Total . | . . . . . . . . . . . . . . . . . Derelict Logs Recovered . | . . . . . . . . . . . . . . . . . Drone Launches . | . . . . . . . . . . . . . . . . . Drone Recoveries . | . . . . . . . . . . . . . . . . . Exploration | -11 -10 -10 -10 -9 -8 -8 -8 -8 -7 -7 -7 -7 -7 -7 -7 -7 ------------- Run | Yrd Mat Min Exi Min Mat Gar Mat Gar Fac Was Fac Gar Fac Gar Fac DSF Turns Passed 16514 | 247 1361 174 487 317 3069 2674 91 2164 1343 437 716 1540 194 1242 369 89 Spaces Moved 7335 | 103 753 82 320 74 1093 958 33 759 530 158 461 910 137 609 272 83 Core 5 | 5 . . . . . . . . . . . . . . . . Treads 4077 | 98 162 . 18 74 1093 958 33 759 530 158 83 . . 111 . . Legs 2197 | . . . . . . . . . . . 378 910 137 498 272 2 Wheels 975 | . 591 82 302 . . . . . . . . . . . . . Hover . | . . . . . . . . . . . . . . . . . Flight 81 | . . . . . . . . . . . . . . . . 81 Fastest Speed 25 | 50 140 140 140 320 160 250 250 243 158 158 118 113 113 106 111 25 Average Speed 182 | 155 147 140 150 320 241 250 250 246 207 158 126 117 113 127 111 32 Slowest Speed 320 | 160 320 140 320 320 250 250 250 250 243 158 250 188 113 257 113 269 Overloaded Moves . | . . . . . . . . . . . . . . . . . Propulsion Burnouts . | . . . . . . . . . . . . . . . . . Robots Hopped . | . . . . . . . . . . . . . . . . . Potential Cave-ins 6 | . . . . . . . . . . 6 . . . . . . Cave-ins Triggered 1 | . . . . . . . . . . . . 1 . . . . Exploration Rate (%) 46 | 6 83 26 60 21 78 93 3 86 18 74 11 97 5 43 8 82 Regions Visited 16 Branch Regions 3 Pre-discovered Areas 1 | . . . 1 . . . . . . . . . . . . . Known Exits Taken 5 | . . . . . 1 . 1 . . . 1 . 1 . 1 . Unknown Exits Taken 5 | 1 1 1 1 1 . . . . . . . . . . . . Scrap Searched . | . . . . . . . . . . . . . . . . . Spaces Dug 36 | . . . . . 6 1 . 2 6 7 12 . . . 2 . Terrain Destroyed 790 | . . 8 . . 114 174 . 111 132 45 70 101 1 32 2 . Melee 17 | . . . . . . . . . 1 5 9 . . . 2 . Projectile 78 | . . . . . 31 3 . 4 15 5 5 11 1 3 . . AOE 694 | . . 8 . . 83 171 . 106 116 35 56 90 . 29 . . Terrain Rammed . | . . . . . . . . . . . . . . . . . Walls Destroyed . | . . . . . . . . . . . . . . . . . Machines Disabled . | . . . . . . . . . . . . . . . . . Actions | -11 -10 -10 -10 -9 -8 -8 -8 -8 -7 -7 -7 -7 -7 -7 -7 -7 --------- Run | Yrd Mat Min Exi Min Mat Gar Mat Gar Fac Was Fac Gar Fac Gar Fac DSF Total 9358 | 141 893 117 329 139 1376 1107 40 943 664 299 543 1218 170 896 334 149 Wait 667 | . 29 13 . 57 68 40 . 59 39 104 15 140 3 84 14 2 Move 7322 | 102 752 81 319 73 1093 956 33 758 530 157 460 909 137 608 271 83 Hop . | . . . . . . . . . . . . . . . . . Pick Up 174 | 7 28 . 4 . 41 4 1 12 5 1 6 13 6 25 16 5 Fast Attach 67 | 7 3 . . . 6 1 . 7 . 2 5 6 3 20 3 4 Attach 67 | . 2 5 3 . 5 3 1 2 6 . 1 6 . 25 . 8 Detach 10 | . . . . . 3 . . 1 . . . 1 . 3 1 1 Swap 139 | 1 7 4 1 1 23 6 4 10 21 2 10 17 7 19 4 2 Drop 188 | 1 12 . 2 . 49 4 1 18 5 3 11 15 10 12 19 26 Fire 577 | 23 60 14 . 8 88 74 . 70 57 24 14 72 4 62 4 3 Melee 84 | . . . . . . 3 . . 1 6 21 22 . 29 2 . Ram . | . . . . . . . . . . . . . . . . . Kick . | . . . . . . . . . . . . . . . . . Crush . | . . . . . . . . . . . . . . . . . Escape Stasis 59 | . . . . . . 16 . 6 . . . 17 . 5 . 15 Rewire 4 | . . . . . . . . . . . . . . 4 . . Trap . | . . . . . . . . . . . . . . . . . Miscellaneous . | . . . . . . . . . . . . . . . . . Route ------- -11/Scrapyard -10/Materials (discovered 4 exits: [*Mat x3] / [*Min]) -10/Mines -10/Exiles -9/Mines -8/Materials (discovered 4 exits: *Fac x2 / [*Sto] / Gar) -8/Garrison (discovered 3 exits: *Mat x3) -8/Materials -8/Garrison (discovered 3 exits: *Fac x3) -7/Factory -7/Waste -7/Factory (discovered 2 exits: [*Low] / Gar) -7/Garrison (discovered 3 exits: *Fac x3) -7/Factory -7/Garrison -7/Factory -7/DSF (discovered 1 exit: [*Fac]) History --------- Turn | Location | Event 2 | -11/Scrapyard | Met Revision 17 6 | -11/Scrapyard | Discovered new exit (range 15) 248 | -11/Scrapyard | Entered Materials 309 | -10/Materials | Build established: Mutant 401 | -10/Materials | Discovered new exit (range 10) 747 | -10/Materials | Discovered new exit (range 9) 872 | -10/Materials | Discovered new exit (range 11) 959 | -10/Materials | Discovered new exit (range 7) 1609 | -10/Materials | Entered Mines 1610 | -10/Mines | Assembled infested the area 1623 | -10/Mines | Met 8R-AWN 1692 | -10/Mines | Core integrity fell below 50% 1698 | -10/Mines | Core integrity fell below 20% 1726 | -10/Mines | Lost 6 parts (1p3n2w) 1765 | -10/Mines | Discovered new exit (range 5) 1783 | -10/Mines | Entered Exiles 1783 | -10/Exiles | Accompanied by 2 allies 1813 | -10/Exiles | Led the pair of lost Derelicts to a safe place 1817 | -10/Exiles | Welcomed by 8R-AWN 1844 | -10/Exiles | Met EX-HEX 1880 | -10/Exiles | Met EX-BIN 1897 | -10/Exiles | Aligned with FarCom system 1898 | -10/Exiles | Given EX-Vault access code 1933 | -10/Exiles | Opened EX-Vault 1940 | -10/Exiles | Found Chronowheel 1972 | -10/Exiles | Warned to stay clear of 0b10 Research branches 2108 | -10/Exiles | Met EX-DEC 2115 | -10/Exiles | Learned location of Zion (-7) 2245 | -10/Exiles | Discovered new exit (range 10) 2270 | -10/Exiles | Left Exiles lab with Chronowheel 2270 | -10/Exiles | Entered Mines 2427 | -9/Mines | Found a Scrap Suit stashed away for nefarious purposes 2523 | -9/Mines | Discovered new exit (range 11) 2584 | -9/Mines | Build established: Skirmisher 2587 | -9/Mines | Entered Materials 2587 | -8/Materials | Evolved 4 slots: Propulsion x2, Utility x1, Weapon x1 2946 | -8/Materials | Destroyed 9 combat bots 3389 | -8/Materials | Discovered new exit (range 13) 4388 | -8/Materials | Discovered new exit (range 4) 5616 | -8/Materials | Discovered new exit (range 15) 5656 | -8/Materials | Identified exit to Garrison 5656 | -8/Materials | Entered Garrison 5748 | -8/Garrison | Triggered checkpoint 5778 | -8/Garrison | Garrison Relay disabled 6048 | -8/Garrison | Triggered checkpoint 6240 | -8/Garrison | Triggered checkpoint 6308 | -8/Garrison | Triggered checkpoint 6474 | -8/Garrison | Phase Generator disabled 6505 | -8/Garrison | Discovered new exit (range 11) 6565 | -8/Garrison | Door terminal overloaded 6566 | -8/Garrison | Rescued HV-R5K 6596 | -8/Garrison | Triggered checkpoint 6742 | -8/Garrison | Garrison Relay disabled 6756 | -8/Garrison | Learned Materials security intel 7098 | -8/Garrison | Garrison Relay disabled 7178 | -8/Garrison | Discovered new exit (range 13) 7288 | -8/Garrison | Triggered checkpoint 7302 | -8/Garrison | Garrison Relay disabled 7552 | -8/Garrison | Triggered checkpoint 7635 | -8/Garrison | Rescued a captive Derelict 7637 | -8/Garrison | Rescued a captive Derelict 7702 | -8/Garrison | Discovered new exit (range 4) 7766 | -8/Garrison | Triggered checkpoint 7802 | -8/Garrison | Garrison Relay disabled 7917 | -8/Garrison | Build established: Mutant 8084 | -8/Garrison | Attempted to access garrison exit controls, blocked by remote lockdown 8330 | -8/Garrison | Entered Materials 8330 | -8/Materials | Accompanied by 3 allies (HV-R5K) 8421 | -8/Materials | Identified exit to Garrison 8421 | -8/Materials | Entered Garrison 8421 | -8/Garrison | Accompanied by 3 allies (HV-R5K) 8473 | -8/Garrison | Triggered checkpoint 8516 | -8/Garrison | Garrison Relay disabled 8699 | -8/Garrison | Triggered checkpoint 8709 | -8/Garrison | Triggered checkpoint 8747 | -8/Garrison | Triggered checkpoint 8831 | -8/Garrison | Triggered checkpoint 8985 | -8/Garrison | Build established: Tank 9043 | -8/Garrison | Phase Generator disabled 9087 | -8/Garrison | Discovered new exit (range 12) 9157 | -8/Garrison | Triggered checkpoint 9255 | -8/Garrison | Garrison Relay disabled 9494 | -8/Garrison | Destroyed HV-R5K 9768 | -8/Garrison | Garrison Relay disabled 9799 | -8/Garrison | Triggered checkpoint 9818 | -8/Garrison | Build established: Skirmisher 9955 | -8/Garrison | Discovered new exit (range 10) 10377 | -8/Garrison | Discovered new exit (range 5) 10417 | -8/Garrison | Triggered checkpoint 10462 | -8/Garrison | Garrison Relay disabled 10585 | -8/Garrison | Entered Factory 10585 | -7/Factory | Evolved 2 slots: Propulsion x1, Utility x1 10985 | -7/Factory | First assault squad dispatched 11024 | -7/Factory | Discovered new exit (range 15) 11549 | -7/Factory | Destroyed 12 combat bots 11928 | -7/Factory | Manually triggered Chute Trap 11928 | -7/Factory | Sucked down chute 11928 | -7/Factory | Entered Waste 11958 | -7/Waste | Spotted C-40 Crusher 12045 | -7/Waste | Destroyed C-40 Crusher 12053 | -7/Waste | Spotted C-40 Crusher 12054 | -7/Waste | Spotted C-40 Crusher 12060 | -7/Waste | Destroyed C-40 Crusher 12151 | -7/Waste | Spotted C-40 Crusher 12157 | -7/Waste | Spotted C-40 Crusher 12181 | -7/Waste | Destroyed C-40 Crusher 12274 | -7/Waste | Spotted C-40 Crusher 12350 | -7/Waste | Discovered new exit (range 10) 12365 | -7/Waste | Entered Factory 12496 | -7/Factory | Build established: Assassin 12635 | -7/Factory | Discovered new exit (range 10) 12988 | -7/Factory | Build established: Hacker-Mutant 13034 | -7/Factory | Identified exit to Garrison 13081 | -7/Factory | Entered Garrison 13241 | -7/Garrison | Triggered checkpoint 13392 | -7/Garrison | Garrison Relay disabled 13435 | -7/Garrison | Build established: Scavenger-Mutant 13441 | -7/Garrison | Triggered checkpoint 13547 | -7/Garrison | Garrison Relay disabled 13555 | -7/Garrison | Found embedded Infiltrators 13644 | -7/Garrison | Triggered checkpoint 13668 | -7/Garrison | Triggered checkpoint 13672 | -7/Garrison | Triggered checkpoint 13683 | -7/Garrison | Triggered checkpoint 13703 | -7/Garrison | Destroyed 9 combat bots 13841 | -7/Garrison | Triggered checkpoint 13920 | -7/Garrison | Garrison Relay disabled 13961 | -7/Garrison | Discovered new exit (range 13) 14001 | -7/Garrison | Phase Generator disabled 14052 | -7/Garrison | Crushed by falling debris 14181 | -7/Garrison | Triggered checkpoint 14205 | -7/Garrison | Garrison Relay disabled 14295 | -7/Garrison | Triggered checkpoint 14337 | -7/Garrison | Discovered new exit (range 13) 14451 | -7/Garrison | Discovered new exit (range 12) 14533 | -7/Garrison | Rescued a captive Derelict 14534 | -7/Garrison | Rescued a captive Derelict 14555 | -7/Garrison | Garrison Relay disabled 14562 | -7/Garrison | Build established: Scavenger-Tank 14621 | -7/Garrison | Entered Factory 14621 | -7/Factory | Accompanied by 3 allies 14815 | -7/Factory | Identified exit to Garrison 14815 | -7/Factory | Entered Garrison 14815 | -7/Garrison | Accompanied by 1 ally 14821 | -7/Garrison | Triggered checkpoint 14976 | -7/Garrison | Garrison Relay disabled 14977 | -7/Garrison | Triggered checkpoint 15216 | -7/Garrison | Triggered checkpoint 15217 | -7/Garrison | System corruption reached 10% 15220 | -7/Garrison | Triggered checkpoint 15230 | -7/Garrison | Core integrity fell below 50% 15304 | -7/Garrison | Lost 9 parts (4n2u3w) 15583 | -7/Garrison | Triggered checkpoint 15583 | -7/Garrison | Triggered checkpoint 15657 | -7/Garrison | Lost 9 parts (1p4n4w) 15679 | -7/Garrison | Core integrity fell below 20% 15725 | -7/Garrison | Lost 8 parts (1p3n2u2w) 15948 | -7/Garrison | Discovered new exit (range 15) 16057 | -7/Garrison | Entered Factory 16230 | -7/Factory | Build established: Scavenger-Gunner 16426 | -7/Factory | Identified exit to DSF 16426 | -7/Factory | Entered DSF 16492 | -7/DSF | Activated Chronowheel 16495 | -7/DSF | Additional patrols routed to DSF 16512 | -7/DSF | Discovered new exit (range 15) 16515 | -7/DSF | Destroyed by C-17 Slicer with Blade Saw Last Messages --------------- 16484_ Stasis field depleted. 16484_ Acquired Hvy. Mace. 16488_ Dropped Hvy. Mace. 16490_ Acquired Hvy. Mace. 16492_ Spacetime feels off. 16495_ Hostiles detected in DSF, routing additional patrols. 16496_ Acquired Nuclear Pulse Thruster. 16496_ C-17 Slicer knocked back. 16497_ Acquired Nuclear Pulse Thruster. 16499_ Nuclear Pulse Thruster severed. 16499_ Acquired Nuclear Pulse Thruster. 16502_ Penetrated by Slug. 16502_ Nuclear Pulse Thruster destroyed. 16506_ Knocked back. 16512_ Chronowheel is disintegrating... 16512_ EXIT=FOUND 16512_ Lgt. Nuclear Core destroyed. 16512_ Cesium-ion Thruster destroyed. 16513_ Acquired 5 matter. Map ----- +----------------------------------------------------+ | | | | | | | | | | | | | | | | | | | | | | | | | | | | | | | | | ???????????????????????????????????????? | | ???????????????????????????????????????? | | ???????????????????????????????????????? | | ???????????????????????????????????????? | | "??????????????????????????????????????? | | "??????????????????????????????????????? | | "##???????#########????????????#???????? | | ""#########!!]]]==########???"""#??????? | | ""## # #!!]]]==#///#//##"""""#??????? | | cc c@ <""#??????? | | """"?????? | | ##!!# ### ###///# ## ""##?????? | | ###!!# #?# ###///# #?# ###??????? | | ########## ########?? #????????? | | #??????# #?????????? /#???????? | | #??????# #???????????/#???????? | | ###??????### ###????????????#???????? | | #????????/ !!#????????????????????? | | #????????/ !!#????????????????????? | | #???????// !!?????????????????????? | | ############ ##??###????????????????? | | ## #!!!### ##?!!!#?? #????????????? | | #" #!!!## ##!!!# ## ??????????? | | % !????????? | | H !????????? | | !????????? | | ##***#!!!## ##!!!#????? ????????? | | ##***#!!!### ##?????????# ????????? | | ############# "##???????## ##???????? | | ??????????#!!! #????????/ /????????? | | ??????????#!! =#????????/ /????????? | | ??????????#! =#????????/ /????????? | | ??????????### ###???????## ##???????? | | ??????????# #????????/ #???????? | +----------------------------------------------------+ Best States ------------- Heat Dissipation 84 Energy Generation 21 Energy Capacity 290 Matter Stores 300 Matter Capacity 300 Sight Range 16 Terrain Scan Range 16 Terrain Scan Density 110 Jamming Range 12 Armor Coverage 300 Resistance: TH 10 Resistance: EM 15 Core Shielding 20 Weapon Cycling 15 Evasion (%) 64 Targeting Accuracy 26 Target Analysis 7 Core Analysis 6 Recoil Reduction 5 Offensive Hacking 20 Defensive Hacking 10 Item Schematics ----------------- Hcp. Storage Unit | -10/Materials | Hacked Huge Storage Unit | -10/Materials | Hacked Biometal Leg | -7/Factory | Scanalyzed Robot Schematics ------------------ None Fabricated ------------ Nothing Repaired ---------- Nothing Studied --------- Titanium Leg | -8/Materials | Hacked Carbon-fiber Leg | -8/Materials | Hacked Katana | -7/Factory | Hacked Alien Tech Used ----------------- None Achievements -------------- None Challenges ------------ None Game ------ Seed ScrapoidCountertargetingMesh Manual? 0 Play Time 01:49:26 Cumulative 441.7 hours Start 2026.07.13 @ 16:55:13 End 2026.07.13 @ 19:10:24 Sessions 1 Manual Loads 0 Difficulty Rogue Special Mode None Game No. 405 Rogue 405 Adventurer 0 Explorer 0 Win Type - Total 11 Types 7/0/2/1/0/0/0/0/0/1 Lore% 61 Gallery% 69 Achievement% 64 Wizard Run 0 Options --------- Layout 1 ASCII 0 Keyboard 0 Movement Mouse Keybinds 0 Fullscreen 2 Font 24/Cog Map View 50x35 Zoom Use 11% Tactical HUD 1 Map Filters NONE Filters NONE Steam 1 RUN: 56d58976-4bee-422f-a934-ece557863469